bitfinex/quotes_BTCUSD_20240826
["timestamp","ask_amount","ask_price","bid_price","bid_amount"]
[1724691727522,0.16417801,63759.0,63758.0,0.3051505]
[1724691727738,0.16417801,63759.0,63758.0,0.6188365]
[1724691727988,0.15617801,63759.0,63758.0,0.6188365]
[1724691728216,0.16417801,63759.0,63758.0,0.6188365]
[1724691728715,0.15617801,63759.0,63758.0,0.6188365]
[1724691728906,0.15617801,63759.0,63758.0,1.2462085]
[1724691729125,0.15617801,63759.0,63758.0,1.2472085]
[1724691730384,0.000825,63772.0,63771.0,0.470433]
[1724691730596,0.15700301,63772.0,63771.0,0.927755]
[1724691731625,0.17000301,63772.0,63771.0,0.927755]
[1724691731797,0.17000301,63772.0,63771.0,0.928755]
[1724691732218,0.17000301,63772.0,63771.0,1.242377]
[1724691732414,0.17000301,63772.0,63771.0,1.241377]
[1724691733276,0.17000301,63772.0,63771.0,1.242377]
[1724691733479,0.15700301,63772.0,63771.0,1.242377]
[1724691733892,0.15700301,63772.0,63771.0,1.244377]
[1724691734078,0.15700301,63772.0,63771.0,1.242377]
[1724691734486,0.15800301,63772.0,63771.0,0.618133]
[1724691734865,0.15800301,63772.0,63771.0,0.309511]
[1724691734866,0.15900301,63772.0,63771.0,0.309511]
[1724691735065,0.62942801,63772.0,63771.0,0.0877]
[1724691735265,0.94304501,63772.0,63771.0,0.0877]
[1724691735465,0.94304501,63772.0,63771.0,0.009]
[1724691737492,0.62942801,63772.0,63771.0,0.009]
[1724691740999,0.94304501,63772.0,63771.0,0.009]
[1724691741199,1.02954501,63772.0,63771.0,0.009]
[1724691741601,1.34316201,63772.0,63771.0,0.009]
[1724691741869,1.02954501,63772.0,63771.0,0.009]
[1724691742000,0.96604501,63772.0,63771.0,0.004]
[1724691742205,0.96504501,63772.0,63771.0,0.004]
[1724691742526,0.65542801,63772.0,63771.0,0.004]
[1724691742733,0.16200301,63772.0,63771.0,0.004]
[1724691742930,0.16100301,63772.0,63771.0,0.220211]
[1724691743106,0.16100301,63772.0,63771.0,0.613733]
[1724691743306,0.16500301,63772.0,63771.0,0.613733]
[1724691743509,0.16100301,63772.0,63771.0,0.613733]
[1724691743717,0.15700301,63772.0,63771.0,0.613733]
[1724691743988,0.16500301,63772.0,63771.0,0.613733]
[1724691744406,0.16100301,63772.0,63771.0,0.300111]
[1724691744612,0.15700301,63772.0,63771.0,0.300111]
[1724691744762,0.15700301,63772.0,63771.0,0.614733]
[1724691744968,0.15700301,63772.0,63771.0,0.616733]
[1724691745167,0.15700301,63772.0,63771.0,0.6166405]
[1724691745551,0.15700301,63772.0,63771.0,0.6176405]
[1724691746178,0.15700301,63772.0,63771.0,0.6156405]
[1724691746693,0.15700301,63772.0,63771.0,0.6176405]
[1724691746927,0.15700301,63772.0,63771.0,0.9312625]
[1724691747552,0.15700301,63772.0,63771.0,0.9302625]
[1724691747756,0.15700301,63772.0,63771.0,0.9322625]
[1724691748581,0.15700301,63772.0,63771.0,1.2458845]
[1724691750111,0.15700301,63772.0,63771.0,0.9322625]
[1724691751361,0.15700301,63772.0,63771.0,0.6186405]
[1724691752821,0.31381101,63772.0,63771.0,0.1482075]
[1724691753442,0.62742801,63772.0,63771.0,0.0848075]
[1724691754738,0.15700301,63772.0,63771.0,0.0848075]
[1724691754973,0.15700301,63772.0,63771.0,0.2416185]
[1724691755173,0.15700301,63772.0,63771.0,0.0848075]
[1724691755326,0.15700301,63772.0,63771.0,0.2416185]
[1724691755730,0.15700301,63772.0,63771.0,0.0848075]
[1724691756892,0.15700301,63772.0,63771.0,0.2416185]
[1724691757123,0.15700301,63772.0,63771.0,0.5552405]
[1724691757951,0.15700301,63772.0,63771.0,0.2416185]
[1724691758162,0.15700301,63772.0,63771.0,0.0848075]
[1724691758371,0.15700301,63772.0,63771.0,0.0049075]
[1724691758372,0.31381101,63772.0,63771.0,0.0049075]
[1724691759003,0.15700301,63772.0,63771.0,0.0049075]
[1724691759614,0.15650301,63772.0,63771.0,0.0049075]
[1724691760202,0.31331101,63772.0,63771.0,0.0049075]
[1724691761244,1.25416201,63772.0,63771.0,0.0049075]
[1724691761447,1.32406563,63772.0,63771.0,0.0049075]
[1724691762468,1.32406563,63772.0,63771.0,0.0029075]
[1724691762674,2.15614603,63772.0,63771.0,0.0029075]
[1724691762880,2.01427368,63772.0,63771.0,0.0009075]
[1724691763093,1.99531485,63772.0,63771.0,0.0009075]
[1724691763317,1.99531485,63772.0,63771.0,0.0049075]
[1724691763530,1.99531485,63772.0,63771.0,0.0029075]
[1724691763731,1.99531485,63772.0,63771.0,0.0009075]
[1724691763931,1.99931485,63772.0,63771.0,0.0009075]
[1724691764135,2.00331485,63772.0,63771.0,0.0009075]
[1724691764552,1.99931485,63772.0,63771.0,0.0009075]
[1724691764964,2.00631485,63772.0,63771.0,0.0009075]
[1724691765581,2.00231485,63772.0,63771.0,0.0009075]
[1724691765988,2.00931485,63772.0,63771.0,0.0009075]
[1724691767727,2.15002572,63772.0,63771.0,0.0009075]
[1724691767974,1.87779038,63772.0,63771.0,0.0009075]
[1724691768434,1.73707951,63772.0,63771.0,0.0009075]
[1724691768668,1.87779038,63772.0,63771.0,0.0009075]
[1724691770215,1.98376193,63772.0,63771.0,0.0009075]
[1724691772326,1.80616722,63772.0,63771.0,0.0009075]
[1724691772546,1.67585976,63772.0,63771.0,0.0009075]
[1724691772774,1.42745022,63772.0,63771.0,0.0009075]
[1724691773180,0.37942051,63772.0,63771.0,0.0009075]
[1724691773382,0.34905752,63772.0,63771.0,0.6201405]
[1724691773533,0.34905752,63772.0,63771.0,0.9337625]
[1724691773751,0.17050301,63772.0,63771.0,0.9337625]
[1724691773953,0.35556764,63772.0,63771.0,0.3065185]
[1724691774156,0.16350301,63772.0,63771.0,0.3065185]
[1724691774359,0.25749558,63772.0,63771.0,0.3065185]
[1724691774559,0.44224437,63772.0,63771.0,0.3065185]
[1724691774942,0.43524437,63772.0,63771.0,0.6201405]
[1724691775376,0.43524437,63772.0,63771.0,0.6231405]
[1724691775577,0.43624437,63772.0,63771.0,0.6201405]
[1724691775734,0.43625161,63772.0,63771.0,0.6201405]
[1724691775934,0.43625161,63772.0,63771.0,0.6231405]
[1724691776183,0.43525161,63772.0,63771.0,0.6231405]
[1724691776615,0.43525183,63772.0,63771.0,0.6261405]
[1724691777492,0.3412518,63772.0,63771.0,0.1557075]
[1724691777716,0.3412518,63772.0,63771.0,0.3125185]
[1724691778320,0.34030057,63772.0,63771.0,0.3125185]
[1724691779469,0.4578043,63772.0,63771.0,0.3125185]
[1724691781057,0.4578043,63772.0,63771.0,0.1557075]
[1724691781380,0.4578043,63772.0,63771.0,0.3125185]
[1724691782594,0.34030057,63772.0,63771.0,0.6261405]
[1724691783983,0.34030057,63772.0,63771.0,0.3125185]
[1724691784417,0.43435171,63772.0,63771.0,0.3125185]
[1724691784621,0.43435171,63772.0,63771.0,0.6261405]
[1724691784822,0.15650301,63772.0,63771.0,0.6261405]
[1724691785028,0.20352786,63772.0,63771.0,0.6261405]
[1724691785639,0.20352786,63772.0,63771.0,1.5670065]
[1724691785854,0.15650301,63772.0,63771.0,1.5670065]
[1724691786474,0.000325,63772.0,63771.0,1.5670065]
[1724691786696,0.04702485,63780.0,63779.0,0.222291]
[1724691786922,0.20320286,63781.0,63780.0,0.617565]
[1724691787103,0.04702485,63782.0,63781.0,0.617559]
[1724691787343,0.04702485,63782.0,63781.0,0.931132]
[1724691787543,0.04702485,63795.0,63789.0,0.1472]
[1724691787694,0.04702485,63795.0,63793.0,0.156756]
[1724691787695,0.003,63795.0,63793.0,0.156756]
[1724691787899,0.003,63794.0,63793.0,0.156757]
[1724691788108,0.15917801,63794.0,63793.0,0.470271]
[1724691788346,0.15917801,63794.0,63793.0,0.238457]
[1724691789623,0.16317801,63794.0,63793.0,0.238457]
[1724691789982,0.16317801,63794.0,63793.0,0.551971]
[1724691791431,0.16117801,63794.0,63793.0,0.551971]
[1724691791629,0.16200301,63794.0,63793.0,0.551971]
[1724691791870,0.16000301,63794.0,63793.0,0.239457]
[1724691792287,0.16000301,63794.0,63793.0,0.241457]
[1724691792520,0.16000301,63794.0,63793.0,0.240457]
[1724691792725,0.16000301,63794.0,63793.0,0.242457]
[1724691793338,0.16000301,63794.0,63793.0,0.869485]
[1724691793517,0.16000301,63794.0,63793.0,0.934985]
[1724691794400,0.16000301,63794.0,63793.0,0.621471]
[1724691794804,0.15900301,63794.0,63793.0,0.621471]
[1724691795024,0.16000301,63794.0,63793.0,0.621471]
[1724691795413,0.16000301,63794.0,63793.0,0.934985]
[1724691796972,0.16000301,63794.0,63793.0,1.248499]
[1724691797150,0.15700301,63794.0,63793.0,1.248499]
[1724691798889,0.15700301,63794.0,63793.0,0.934985]
[1724691801253,0.15700301,63794.0,63793.0,1.248499]
[1724691807153,0.15700301,63794.0,63793.0,0.934985]
[1724691818464,0.15700301,63794.0,63793.0,1.248499]
[1724691818668,0.15700301,63794.0,63793.0,0.934985]
[1724691819724,0.15700301,63794.0,63793.0,0.869485]
[1724691824109,0.15700301,63794.0,63793.0,0.004]
[1724691824302,0.15700301,63794.0,63793.0,0.160757]
[1724691825572,0.15700301,63794.0,63793.0,0.004]
[1724691825722,0.15700301,63794.0,63793.0,0.160757]
[1724691825952,0.15700301,63794.0,63793.0,0.004]
[1724691826571,0.15700301,63794.0,63793.0,0.160757]
[1724691829499,0.15700301,63794.0,63793.0,0.474271]
[1724691829696,0.15700301,63794.0,63793.0,0.160757]
[1724691832551,0.20392844,63794.0,63793.0,0.160757]
[1724691833367,0.20392844,63794.0,63793.0,0.474271]
[1724691833577,0.15700301,63794.0,63793.0,0.474271]
[1724691836285,0.15700301,63794.0,63793.0,0.870085]
[1724691836493,0.22759262,63794.0,63793.0,0.621971]
[1724691838485,0.22759262,63794.0,63793.0,0.935485]
[1724691843957,0.22759262,63794.0,63793.0,0.870085]
[1724691848607,0.15700301,63794.0,63793.0,0.870085]
[1724691851044,0.15700301,63794.0,63793.0,1.183599]
[1724691851249,0.15700301,63794.0,63793.0,1.244999]
[1724691851422,0.20408728,63794.0,63793.0,1.244999]
[1724691851610,0.15700301,63794.0,63793.0,1.244999]
[1724691852011,0.15700301,63794.0,63793.0,1.242999]
[1724691852494,0.15700301,63794.0,63793.0,1.244999]
[1724691852660,0.15700301,63794.0,63793.0,1.242999]
[1724691852882,0.15700301,63794.0,63793.0,1.240999]
[1724691853081,0.15800301,63794.0,63793.0,1.247999]
[1724691853263,0.15800301,63794.0,63793.0,1.249999]
[1724691853915,0.15800301,63794.0,63793.0,1.247999]
[1724691854132,0.15900301,63794.0,63793.0,1.256999]
[1724691854355,0.15800301,63794.0,63793.0,1.249999]
[1724691854563,0.15900301,63794.0,63793.0,1.258999]
[1724691854765,0.15800301,63794.0,63793.0,1.240999]
[1724691855221,0.002825,63794.0,63793.0,1.251999]
[1724691855635,0.002825,63794.0,63793.0,1.565513]
[1724691856346,0.002825,63794.0,63793.0,1.574513]
[1724691856347,0.003825,63794.0,63793.0,1.574513]
[1724691856829,0.003825,63794.0,63793.0,1.260999]
[1724691857775,0.003825,63794.0,63793.0,1.574513]
[1724691868317,0.003825,63794.0,63793.0,1.888027]
[1724691868526,0.003825,63794.0,63793.0,1.988027]
[1724691868732,0.000824,63800.0,63799.0,1.097194]
[1724691868951,0.32203682,63813.0,63801.0,0.0769]
[1724691869156,0.43117801,63813.0,63812.0,1.029511]
[1724691869375,0.43117801,63813.0,63812.0,1.656351]
[1724691869617,0.275,63813.0,63812.0,1.656351]
[1724691870448,0.276,63813.0,63812.0,1.665351]
[1724691871537,0.277,63813.0,63812.0,1.679351]
[1724691871959,0.276,63813.0,63812.0,1.670351]
[1724691872170,0.276,63813.0,63812.0,1.684351]
[1724691875992,0.276825,63813.0,63812.0,1.684351]
[1724691891895,0.276825,63813.0,63812.0,1.670351]
[1724691892095,0.277825,63813.0,63812.0,1.670351]
[1724691892318,0.276825,63813.0,63812.0,1.670351]
[1724691892536,0.277825,63813.0,63812.0,1.684351]
[1724691893516,0.276825,63813.0,63812.0,1.670351]
[1724691893715,0.276825,63813.0,63812.0,1.684351]
[1724691893964,0.277825,63813.0,63812.0,1.684351]
[1724691894754,0.002825,63813.0,63812.0,1.684351]
[1724691895987,0.00826,63816.0,63815.0,1.351978]
[1724691896192,0.00826,63816.0,63812.0,0.34142]
[1724691896193,0.07295,63836.0,63834.0,0.469968]
[1724691896534,0.44043801,63835.0,63834.0,0.78328]
[1724691897487,0.44243801,63835.0,63834.0,0.78328]
[1724691897893,0.44143801,63835.0,63834.0,0.78328]
[1724691898498,0.44443801,63835.0,63834.0,0.78328]
[1724691900510,0.44143801,63835.0,63834.0,0.78328]
[1724691901864,0.44143801,63835.0,63834.0,0.78428]
[1724691902062,0.44143801,63835.0,63834.0,0.78528]
[1724691902694,0.44143801,63835.0,63834.0,0.471968]
[1724691902898,0.44143801,63835.0,63834.0,0.158656]
[1724691902899,0.51233801,63835.0,63834.0,0.158656]
[1724691903012,1.04109801,63835.0,63834.0,0.002]
[1724691905533,1.66771201,63835.0,63834.0,0.002]
[1724691905710,1.35440501,63835.0,63834.0,0.002]
[1724691908934,1.04109801,63835.0,63834.0,0.002]
[1724691909705,1.04109801,63835.0,63834.0,0.001]
[1724691910726,0.72779101,63835.0,63834.0,0.001]
[1724691912662,1.04109801,63835.0,63834.0,0.001]
[1724691914713,1.08806777,63835.0,63834.0,0.001]
[1724691915609,1.04109801,63835.0,63834.0,0.001]
[1724691915829,1.35440501,63835.0,63834.0,0.001]
[1724691916775,1.46326601,63835.0,63834.0,0.001]
[1724691918733,1.77657301,63835.0,63834.0,0.001]
[1724691920431,2.08988001,63835.0,63834.0,0.001]
[1724691920670,2.10501901,63835.0,63834.0,0.001]
[1724691920925,2.428419,63835.0,63834.0,0.001]
[1724691921975,0.917602,63824.0,63823.0,0.0009064]
[1724691922221,1.18264101,63824.0,63823.0,0.0009064]
[1724691923161,1.18364101,63824.0,63823.0,0.0009064]
[1724691924627,1.30104407,63824.0,63823.0,0.0009064]
[1724691925328,1.61440507,63824.0,63823.0,0.0009064]
[1724691925565,1.52000201,63824.0,63823.0,0.0009064]
[1724691926071,1.83436301,63824.0,63823.0,0.0009064]
[1724691926353,1.86461918,63824.0,63823.0,0.0009064]
[1724691926603,2.0588074,63824.0,63823.0,0.0009064]
[1724691926860,2.0638074,63824.0,63823.0,0.0019064]
[1724691927408,2.00942605,63824.0,63823.0,0.0019064]
[1724691927601,1.86861918,63824.0,63823.0,0.0019064]
[1724691928786,1.84036301,63824.0,63823.0,0.0019064]
[1724691929032,1.83336301,63824.0,63823.0,0.0009064]
[1724691929244,1.84136301,63824.0,63823.0,0.0019064]
[1724691929710,1.84836301,63824.0,63823.0,0.0019064]
[1724691929978,1.85636301,63824.0,63823.0,0.0029064]
[1724691930196,1.84936301,63824.0,63823.0,0.0019064]
[1724691930393,1.85636301,63824.0,63823.0,0.0029064]
[1724691931460,1.66019527,63824.0,63823.0,0.0029064]
[1724691932503,1.54300201,63824.0,63823.0,0.0029064]
[1724691933587,1.63672662,63824.0,63823.0,0.0029064]
[1724691934013,0.17917801,63824.0,63823.0,0.8695214]
[1724691934233,0.17917801,63824.0,63823.0,0.9340214]
[1724691934443,0.17917801,63824.0,63823.0,1.2463874]
[1724691935130,0.16417801,63824.0,63823.0,1.2453874]
[1724691935310,0.16117801,63824.0,63823.0,1.2453874]
[1724691935585,0.16117801,63824.0,63823.0,1.2493874]
[1724691935790,0.15617801,63824.0,63823.0,1.2443874]
[1724691936000,0.15617801,63824.0,63823.0,1.2553874]
[1724691936215,0.15617801,63824.0,63823.0,1.2663874]
[1724691936216,0.15717801,63824.0,63823.0,1.2663874]
[1724691939326,0.15617801,63824.0,63823.0,1.2443874]
[1724691939568,0.15617801,63824.0,63823.0,1.2563874]
[1724691939803,0.15617801,63824.0,63823.0,1.2683874]
[1724691941081,0.15617801,63824.0,63823.0,1.5817534]
[1724691942554,0.00825,63836.0,63834.0,1.176592]
[1724691942857,0.00825,63836.0,63834.0,1.237292]
[1724691942858,0.43943801,63835.0,63834.0,1.237292]
[1724691945951,0.43943801,63835.0,63834.0,1.244292]
[1724691946934,0.44640744,63835.0,63834.0,1.251292]
[1724691951059,0.17140744,63835.0,63834.0,1.251292]
[1724691951254,0.16443801,63835.0,63834.0,1.251292]
[1724691961976,0.16443801,63835.0,63834.0,1.35996242]
[1724691964522,0.00826,63835.0,63834.0,1.67327442]
[1724691975119,0.00826,63835.0,63834.0,1.564604]
[1724691975353,0.00826,63835.0,63834.0,1.67327442]
[1724691976053,0.00826,63835.0,63834.0,1.564604]
[1724691976327,0.00826,63835.0,63834.0,1.67327442]
[1724691979515,0.00826,63835.0,63834.0,1.251292]
[1724691979731,0.22743801,63835.0,63834.0,0.014]
[1724691979930,0.22743801,63835.0,63834.0,0.483968]
[1724691980179,0.23449982,63835.0,63834.0,0.79728]
[1724691980704,0.23449982,63835.0,63834.0,0.163656]
[1724691980877,0.23449982,63835.0,63834.0,0.476968]
[1724691981085,0.23449982,63835.0,63834.0,0.478968]
[1724691981492,0.23449982,63835.0,63834.0,0.471968]
[1724691981706,0.23449982,63835.0,63834.0,0.473968]
[1724691983346,0.23449982,63835.0,63834.0,0.160656]
[1724691983782,0.23449982,63835.0,63834.0,0.004]
[1724691984157,0.23449982,63835.0,63834.0,0.160656]
[1724691986572,0.000825,63842.0,63840.0,1.09649]
[1724691986772,0.000825,63842.0,63840.0,1.02787742]
[1724691987770,0.002825,63841.0,63840.0,1.02787742]
[1724691987965,0.15900301,63841.0,63840.0,1.02787742]
[1724691988212,0.15900301,63841.0,63840.0,0.858807]
[1724691988456,0.15700301,63841.0,63840.0,0.858807]
[1724691989283,0.15700301,63841.0,63840.0,0.481924]
[1724691989710,0.15700301,63841.0,63840.0,0.492924]
[1724691989960,0.22790301,63841.0,63840.0,0.023]
[1724691990203,0.28790301,63841.0,63840.0,0.023]
[1724691991053,0.28790301,63841.0,63840.0,0.012]
[1724691991223,0.28790301,63841.0,63840.0,0.006]
[1724691991632,0.28790301,63841.0,63840.0,0.168641]
[1724691991834,0.28790301,63841.0,63840.0,0.162641]
[1724691992199,0.28790301,63841.0,63840.0,0.168641]
[1724691992833,0.28790301,63841.0,63840.0,0.481924]
[1724691993393,0.28790301,63841.0,63840.0,0.475924]
[1724691993797,0.28790301,63841.0,63840.0,0.481924]
[1724691994636,0.21700301,63841.0,63840.0,0.481924]
[1724691997299,0.21700301,63841.0,63840.0,0.475924]
[1724691997502,0.15700301,63841.0,63840.0,0.789207]
[1724691997720,0.15700301,63841.0,63840.0,0.786207]
[1724691997857,0.15700301,63841.0,63840.0,0.789207]
[1724691998061,0.15700301,63841.0,63840.0,0.786207]
[1724691998463,0.15700301,63841.0,63840.0,0.789207]
[1724691999088,0.15700301,63841.0,63840.0,0.868607]
[1724691999856,0.15700301,63841.0,63840.0,1.18189]
[1724692001273,0.000825,63841.0,63840.0,1.495173]
[1724692001494,0.000825,63841.0,63840.0,1.872756]
[1724692001675,0.000825,63841.0,63840.0,1.559473]
[1724692002298,0.000825,63841.0,63840.0,1.872756]
[1724692002477,0.000825,63841.0,63840.0,1.659473]
[1724692003106,0.000825,63841.0,63840.0,1.656473]
[1724692003531,0.000825,63841.0,63840.0,1.660473]
[1724692004339,0.000825,63841.0,63840.0,1.674473]
[1724692004520,0.000825,63841.0,63840.0,1.667473]
[1724692004717,0.000825,63841.0,63840.0,1.681473]
[1724692004925,0.000825,63841.0,63840.0,1.667473]
[1724692005126,0.000825,63841.0,63840.0,1.681473]
[1724692008317,0.000825,63841.0,63840.0,1.994756]
[1724692008536,0.000825,63841.0,63840.0,1.681473]
[1724692010826,0.000825,63841.0,63840.0,1.667473]
[1724692011027,0.000825,63841.0,63840.0,1.653473]
[1724692011228,0.000825,63841.0,63840.0,1.667473]
[1724692011433,0.000825,63841.0,63840.0,1.681473]
[1724692011802,0.000825,63841.0,63840.0,1.994756]
[1724692012011,0.000825,63841.0,63840.0,1.681473]
[1724692012872,0.000825,63841.0,63840.0,1.994756]
[1724692014002,0.000825,63841.0,63840.0,2.10336942]
[1724692014435,0.09808122,63845.0,63844.0,0.0792]
[1724692014780,0.09808122,63845.0,63844.0,0.72673941]
[1724692014922,0.09808122,63845.0,63844.0,0.82673941]
[1724692015128,0.09808122,63845.0,63844.0,1.76652841]
[1724692016148,0.09808122,63845.0,63844.0,1.78052841]
[1724692016357,0.09808122,63845.0,63844.0,1.79452841]
[1724692018763,0.09808122,63845.0,63844.0,2.10779141]
[1724692018964,0.08275602,63845.0,63844.0,2.10779141]
[1724692019567,0.08275602,63845.0,63844.0,2.09379141]
[1724692020238,0.08275602,63845.0,63844.0,2.10779141]
[1724692020645,0.46876099,63861.0,63847.0,1.65972942]
[1724692021077,0.46876099,63861.0,63847.0,2.07297742]
[1724692021267,0.0613,63863.0,63854.0,1.20486242]
[1724692021502,0.0613,63863.0,63854.0,1.65957642]
[1724692022400,0.003,63865.0,63854.0,1.65957642]
[1724692022623,0.00924,63864.0,63854.0,1.65957642]
[1724692022827,0.00824,63864.0,63854.0,1.65957642]
[1724692023055,0.00824,63864.0,63854.0,1.66957642]
[1724692023620,0.00824,63864.0,63854.0,1.98279042]
[1724692023829,0.00924,63864.0,63854.0,1.98279042]
[1724692024026,0.00924,63864.0,63854.0,1.99179042]
[1724692024230,0.01124,63864.0,63854.0,1.99179042]
[1724692024731,0.00824,63864.0,63854.0,1.99179042]
[1724692025363,0.00924,63864.0,63854.0,1.99179042]
[1724692026369,0.003,63863.0,63854.0,1.99179042]
[1724692028394,0.01124,63864.0,63854.0,1.99179042]
[1724692032031,0.01124,63864.0,63854.0,1.98279042]
[1724692032213,0.00741877,63855.0,63854.0,1.97279042]
[1724692032414,0.00741877,63855.0,63854.0,1.98679042]
[1724692032628,0.00741877,63855.0,63854.0,2.00079042]
[1724692045704,0.00741877,63855.0,63854.0,1.578963]
[1724692046021,0.00741877,63855.0,63854.0,1.68757642]
[1724692046672,0.00741877,63855.0,63854.0,1.78757642]
[1724692047033,0.00741877,63855.0,63854.0,2.10079042]
[1724692047445,0.00741877,63855.0,63854.0,2.08679042]
[1724692047650,0.00741877,63855.0,63854.0,1.77357642]
[1724692047856,0.00741877,63855.0,63854.0,2.08679042]
[1724692048281,0.00741877,63855.0,63854.0,2.10079042]
[1724692048481,0.00741877,63855.0,63854.0,2.08679042]
[1724692048659,0.00741877,63855.0,63854.0,2.07279042]
[1724692048866,0.00741877,63855.0,63854.0,2.08679042]
[1724692049102,0.00741877,63855.0,63854.0,2.10079042]
[1724692049812,0.00741877,63855.0,63854.0,2.08679042]
[1724692049970,0.00741877,63855.0,63854.0,2.10079042]
[1724692052775,0.00741877,63855.0,63854.0,2.10169682]
[1724692053263,0.00741877,63855.0,63854.0,1.78848282]
[1724692053469,0.00741877,63855.0,63854.0,2.10169682]
[1724692055304,0.00741877,63855.0,63854.0,2.14835109]
[1724692056220,0.00741877,63855.0,63854.0,1.83513709]
[1724692057492,0.00824,63864.0,63858.0,1.409373]
[1724692057829,0.00825,63877.0,63876.0,0.782765]
[1724692057830,0.47701099,63877.0,63876.0,0.782765]
[1724692058029,0.47701099,63877.0,63876.0,1.20448442]
[1724692058225,0.00825,63877.0,63876.0,1.51759042]
[1724692059045,0.00825,63877.0,63876.0,1.52459042]
[1724692060274,0.00825,63877.0,63876.0,1.51759042]
[1724692060473,0.00825,63877.0,63876.0,1.52759042]
[1724692061404,0.00825,63877.0,63876.0,1.53659042]
[1724692061405,0.07465,63877.0,63876.0,1.53659042]
[1724692062200,0.07465,63877.0,63876.0,1.22348442]
[1724692062953,0.30172801,63877.0,63876.0,0.019]
[1724692063406,0.30172801,63877.0,63876.0,0.175553]
[1724692063772,0.30172801,63877.0,63876.0,0.165553]
[1724692064034,0.30172801,63877.0,63876.0,0.168553]
[1724692064238,0.30172801,63877.0,63876.0,0.159553]
[1724692064438,0.30172801,63877.0,63876.0,0.156553]
[1724692064758,0.30172801,63877.0,63876.0,0.162553]
[1724692064920,0.30172801,63877.0,63876.0,0.472659]
[1724692065530,0.30172801,63877.0,63876.0,0.475659]
[1724692067479,0.30172801,63877.0,63876.0,0.162553]
[1724692068214,0.30172801,63877.0,63876.0,0.006]
[1724692068412,0.30172801,63877.0,63876.0,0.162553]
[1724692070688,0.30172801,63877.0,63876.0,0.475659]
[1724692071049,0.30172801,63877.0,63876.0,0.162553]
[1724692071250,1.08448001,63877.0,63876.0,0.006]
[1724692072239,0.77137901,63877.0,63876.0,0.006]
[1724692072633,0.30172801,63877.0,63876.0,0.006]
[1724692073064,0.45827801,63877.0,63876.0,0.006]
[1724692074300,0.30172801,63877.0,63876.0,0.006]
[1724692074509,0.45827801,63877.0,63876.0,0.006]
[1724692075526,0.30172801,63877.0,63876.0,0.006]
[1724692076394,0.52879543,63877.0,63876.0,0.006]
[1724692077532,0.37224543,63877.0,63876.0,0.006]
[1724692078362,0.52879543,63877.0,63876.0,0.006]
[1724692078775,0.87999243,63877.0,63876.0,0.006]
[1724692078981,1.21709343,63877.0,63876.0,0.006]
[1724692079241,0.782862,63868.0,63867.0,0.0009064]
[1724692079469,0.535413,63855.0,63854.0,0.0009064]
[1724692079676,1.34307565,63855.0,63854.0,0.0009064]
[1724692079882,1.18431343,63855.0,63854.0,0.0009064]
[1724692080087,0.76249101,63855.0,63854.0,0.0009064]
[1724692080292,1.07570001,63855.0,63854.0,0.0009064]
[1724692080506,0.76249101,63855.0,63854.0,0.0009064]
[1724692081134,0.83285258,63855.0,63854.0,0.0009064]
[1724692081359,1.14606094,63855.0,63854.0,0.0009064]
[1724692081564,0.76249101,63855.0,63854.0,0.0019064]
[1724692081768,0.42628404,63855.0,63854.0,0.0019064]
[1724692081986,0.37938201,63855.0,63854.0,0.0019064]
[1724692082393,0.69259101,63855.0,63854.0,0.0019064]
[1724692083346,1.00580001,63855.0,63854.0,0.0019064]
[1724692083549,1.01580001,63855.0,63854.0,0.0019064]
[1724692083778,1.01580001,63855.0,63854.0,0.0009064]
[1724692083779,1.07570001,63855.0,63854.0,0.0009064]
[1724692083984,1.08270001,63855.0,63854.0,0.0019064]
[1724692084219,1.08670001,63855.0,63854.0,0.0019064]
[1724692084429,1.08670001,63855.0,63854.0,0.0009064]
[1724692084430,1.07970001,63855.0,63854.0,0.0009064]
[1724692084861,1.08070001,63855.0,63854.0,0.0009064]
[1724692085284,1.08670001,63855.0,63854.0,0.0019064]
[1724692086140,1.09370001,63855.0,63854.0,0.0029064]
[1724692088643,1.02280001,63855.0,63854.0,0.0029064]
[1724692089492,0.70959101,63855.0,63854.0,0.0029064]
[1724692093788,1.02280001,63855.0,63854.0,0.0029064]
[1724692096226,0.70959101,63855.0,63854.0,0.0029064]
[1724692096383,1.02280001,63855.0,63854.0,0.0029064]
[1724692097360,0.70959101,63855.0,63854.0,0.0029064]
[1724692097782,1.02280001,63855.0,63854.0,0.0029064]
[1724692099639,0.70959101,63855.0,63854.0,0.0029064]
[1724692099857,1.02280001,63855.0,63854.0,0.0029064]
[1724692100048,0.70959101,63855.0,63854.0,0.0029064]
[1724692100249,1.02280001,63855.0,63854.0,0.0029064]
[1724692100660,1.02280001,63855.0,63854.0,0.0019064]
[1724692100661,1.01580001,63855.0,63854.0,0.0019064]
[1724692101050,1.00880001,63855.0,63854.0,0.0019064]
[1724692101250,1.00880001,63855.0,63854.0,0.0029064]
[1724692101458,1.01080001,63855.0,63854.0,0.0019064]
[1724692102631,1.05758811,63855.0,63854.0,0.0019064]
[1724692102836,1.06058811,63855.0,63854.0,0.0029064]
[1724692103059,1.37379711,63855.0,63854.0,0.0029064]
[1724692103281,1.52166888,63855.0,63854.0,0.0029064]
[1724692103500,1.62457449,63855.0,63854.0,0.0029064]
[1724692103708,1.62349581,63855.0,63854.0,0.0029064]
[1724692104436,1.62349581,63855.0,63854.0,0.0019064]
[1724692104437,1.62049581,63855.0,63854.0,0.0019064]
[1724692104635,1.61649581,63855.0,63854.0,0.0019064]
[1724692104868,1.6162742,63855.0,63854.0,0.0019064]
[1724692105099,1.6302742,63855.0,63854.0,0.0029064]
[1724692105894,1.93091715,63855.0,63854.0,0.0029064]
[1724692106112,1.87230167,63855.0,63854.0,0.0029064]
[1724692106734,2.05121143,63855.0,63854.0,0.0019064]
[1724692107144,2.06521143,63855.0,63854.0,0.0019064]
[1724692107355,2.05121143,63855.0,63854.0,0.0019064]
[1724692107560,2.19334311,63855.0,63854.0,0.0009064]
[1724692107779,2.53455211,63855.0,63854.0,0.0019064]
[1724692108696,2.53455211,63855.0,63823.0,0.0009064]
[1724692108697,0.15668,63824.0,63823.0,0.0009064]
[1724692108923,1.28412467,63824.0,63823.0,0.0009064]
[1724692109132,2.03384667,63824.0,63823.0,0.0009064]
[1724692109358,1.097092,63805.0,63804.0,0.1]
[1724692109608,1.618827,63805.0,63804.0,0.1]
[1724692109827,1.679327,63805.0,63804.0,0.1]
[1724692110253,1.72615068,63805.0,63804.0,0.1]